{"text_format":"1","workbook":"xlsx","n_sheets":4,"sheets":["提出用","提出用写","入力用","提出用控"],"not_rendered":{"charts":0,"images":1,"macros":1,"external_links":0,"defined_names":4,"comments":0,"pivot_tables":0},"unopened":[],"bounds":{"document_bytes":16777216,"sheet_cells":100000,"rows_first":2000,"rows_last":500,"rows_between":2000,"halvings":0,"cell_chars":16384,"cell_head_chars":4096},"cells_cut":0,"cells_raw":0,"read":"whole","date_system":"1900"}

{"sheet":"提出用","index":0,"n_rows":18,"n_cols":113,"rows_kept":18,"cut":false,"hidden":false,"merged":[[12,41,15,60],[2,65,10,72],[12,16,15,24],[2,112,3,120],[2,73,3,102],[2,103,3,111],[4,112,4,116],[4,117,4,120],[4,1,6,64],[7,1,8,64],[3,1,3,10],[4,103,4,107],[4,108,4,111],[52,16,52,64],[54,16,54,64],[20,65,67,120],[17,12,18,64],[42,12,43,15],[17,65,18,120],[19,65,19,120],[26,12,27,15],[28,12,29,15],[40,12,41,15],[56,16,56,64],[48,12,49,15],[50,12,51,15],[50,16,50,64],[48,16,48,64],[44,12,45,15],[46,12,47,15],[34,16,34,64],[40,16,40,64],[20,16,20,64],[30,16,30,64],[28,16,28,64],[26,16,26,64],[24,16,24,64],[66,12,67,15],[66,16,66,64],[64,16,64,64],[60,12,61,15],[62,12,63,15],[60,16,60,64],[62,16,62,64],[62,1,63,11],[64,1,65,11],[66,1,67,11],[34,1,35,11],[36,1,37,11],[38,1,39,11],[40,1,41,11],[42,1,43,11],[12,10,15,12],[12,25,15,40],[12,13,15,15],[64,12,65,15],[17,1,18,11],[56,12,57,15],[58,12,59,15],[58,16,58,64],[34,12,35,15],[36,12,37,15],[38,12,39,15],[19,12,21,15],[22,12,23,15],[24,12,25,15],[46,16,46,64],[44,16,44,64],[19,1,19,10],[52,12,53,15],[54,12,55,15],[30,1,31,11],[5,76,5,78],[5,88,5,90],[5,91,5,93],[5,94,5,96],[5,97,5,99],[5,100,5,102],[5,79,5,81],[4,73,4,102],[5,82,5,84],[5,85,5,87],[22,16,22,64],[6,73,7,84],[6,85,7,120],[8,73,9,78],[8,79,9,84],[8,85,9,90],[8,91,9,96],[8,97,9,102],[8,103,9,108],[8,109,9,114],[11,97,12,106],[11,107,13,120],[14,97,15,106],[32,1,33,11],[8,115,9,120],[58,1,59,11],[60,1,61,11],[9,1,9,64],[14,107,16,120],[44,1,45,11],[46,1,47,11],[48,1,49,11],[50,1,51,11],[52,1,53,11],[54,1,55,11],[56,1,57,11],[38,16,38,64],[36,16,36,64],[42,16,42,64],[32,16,32,64],[30,12,31,15],[32,12,33,15],[20,1,21,11],[22,1,23,11],[24,1,25,11],[26,1,27,11],[28,1,29,11]]}
[]
[]
[null,null,null,null,null,null,null,null,null,null,null,null,null,null,null,null,null,null,null,null,null,null,null,null,null,null,null,null,null,null,null,null,null,null,null,null,null,null,null,null,null,null,null,null,null,null,null,null,null,null,null,null,null,null,null,null,null,null,null,null,null,null,null,null,null,"※処理事項",null,null,null,null,null,null,null,"事業者コード",null,null,null,null,null,null,null,null,null,null,null,null,null,null,null,null,null,null,null,null,null,null,null,null,null,null,null,null,null,"処理\n区分",null,null,null,null,null,null,null,null,"申告\n区分"]
[null,"　申告者の氏名又は名称"]
[]
[]
[null,null,null,null,null,null,null,null,null,null,null,null,null,null,null,null,null,null,null,null,null,null,null,null,null,null,null,null,null,null,null,null,null,null,null,null,null,null,null,null,null,null,null,null,null,null,null,null,null,null,null,null,null,null,null,null,null,null,null,null,null,null,null,null,null,null,null,null,null,null,null,null,null,"予備",null,null,null,null,null,null,null,null,null,null,null,"申 告 年 月 日"]
[null,"　個人番号又は法人番号\n　    　 　　↓個人番号の記載に当たっては、左端を空欄とし、ここから記載してください。"]
[null,null,null,null,null,null,null,null,null,null,null,null,null,null,null,null,null,null,null,null,null,null,null,null,null,null,null,null,null,null,null,null,null,null,null,null,null,null,null,null,null,null,null,null,null,null,null,null,null,null,null,null,null,null,null,null,null,null,null,null,null,null,null,null,null,null,null,null,null,null,null,null,null,1,null,null,null,null,null,3]
[]
[]
[null,null,null,null,null,null,null,null,null,null,null,null,null,null,null,null,null,null,null,null,null,null,null,null,null,null,null,null,null,null,null,null,null,null,null,null,null,null,null,null,null,null,null,null,null,null,null,null,null,null,null,null,null,null,null,null,null,null,null,null,null,null,null,null,null,null,null,null,null,null,null,null,null,null,null,null,null,null,null,null,null,null,null,null,null,null,null,null,null,null,null,null,null,null,null,null,null,null,null,null,null,null,null,null,null,null,null,"枚のうち"]
[null,null,null,null,null,null,null,null,null,null,"令和",null,null,null,null,null,"年",null,null,null,null,null,null,null,null,null,null,null,null,null,null,null,null,null,null,null,null,null,null,null,null,"月申告分"]
[]
[null,null,null,null,null,null,null,null,null,null,null,null,null,null,null,null,null,null,null,null,null,null,null,null,null,null,null,null,null,null,null,null,null,null,null,null,null,null,null,null,null,null,null,null,null,null,null,null,null,null,null,null,null,null,null,null,null,null,null,null,null,null,null,null,null,null,null,null,null,null,null,null,null,null,null,null,null,null,null,null,null,null,null,null,null,null,null,null,null,null,null,null,null,null,null,null,null,null,null,null,null,null,null,null,null,null,null,"枚目"]
[]
[]
[null,"品　　　　目",null,null,null,null,null,null,null,null,null,null,"数　　　　量",null,null,null,null,null,null,null,null,null,null,null,null,null,null,null,null,null,null,null,null,null,null,null,null,null,null,null,null,null,null,null,null,null,null,null,null,null,null,null,null,null,null,null,null,null,null,null,null,null,null,null,null,"返還の理由及びその他\n参考となるべき事項"]

{"sheet":"提出用写","index":1,"n_rows":67,"n_cols":113,"rows_kept":67,"cut":false,"hidden":true,"merged":[[11,97,12,106],[11,107,13,120],[14,97,15,106],[14,107,16,120],[17,65,18,120],[17,16,18,64],[17,12,18,15],[2,65,10,72],[12,16,15,24],[2,73,3,102],[8,103,9,108],[8,109,9,114],[2,103,3,111],[2,112,3,120],[8,73,9,78],[8,79,9,84],[8,85,9,90],[8,91,9,96],[8,97,9,102],[4,112,4,116],[4,117,4,120],[5,76,5,78],[5,79,5,81],[5,82,5,84],[5,85,5,87],[5,88,5,90],[5,91,5,93],[8,115,9,120],[5,97,5,99],[5,100,5,102],[6,73,7,84],[6,85,7,120],[4,103,4,106],[4,107,4,111],[5,94,5,96],[4,73,4,102],[28,16,28,64],[26,16,26,64],[24,16,24,64],[22,16,22,64],[26,12,26,15],[28,12,28,15],[38,1,39,11],[40,1,41,11],[42,1,43,11],[58,16,58,64],[58,12,58,15],[60,12,60,15],[56,16,56,64],[30,16,30,64],[32,16,32,64],[40,16,40,64],[50,12,50,15],[52,12,52,15],[36,16,36,64],[34,12,34,15],[36,12,36,15],[30,12,30,15],[32,12,32,15],[38,16,38,64],[38,12,38,15],[40,12,40,15],[44,16,44,64],[42,16,42,64],[52,16,52,64],[50,16,50,64],[19,65,19,120],[19,12,19,15],[20,12,20,15],[66,12,66,15],[66,16,66,64],[64,16,64,64],[62,16,62,64],[22,12,22,15],[24,12,24,15],[54,16,54,64],[56,12,56,15],[42,12,42,15],[44,12,44,15],[46,16,46,64],[48,16,48,64],[46,12,46,15],[48,12,48,15],[54,12,54,15],[20,65,67,120],[34,16,34,64],[20,16,20,64],[62,12,62,15],[64,12,64,15],[60,16,60,64],[4,1,6,64],[7,1,8,64],[3,1,3,10],[9,1,9,64],[12,13,15,15],[12,10,15,12],[12,25,15,40],[12,41,15,60],[19,1,19,10],[54,1,55,11],[56,1,57,11],[58,1,59,11],[60,1,61,11],[62,1,63,11],[64,1,65,11],[66,1,67,11],[17,1,18,11],[20,1,21,11],[22,1,23,11],[24,1,25,11],[26,1,27,11],[28,1,29,11],[30,1,31,11],[32,1,33,11],[34,1,35,11],[36,1,37,11],[44,1,45,11],[46,1,47,11],[48,1,49,11],[50,1,51,11],[52,1,53,11]]}
[]
[]
[null,null,null,null,null,null,null,null,null,null,null,null,null,null,null,null,null,null,null,null,null,null,null,null,null,null,null,null,null,null,null,null,null,null,null,null,null,null,null,null,null,null,null,null,null,null,null,null,null,null,null,null,null,null,null,null,null,null,null,null,null,null,null,null,null,"※処理事項",null,null,null,null,null,null,null,"事業者コード",null,null,null,null,null,null,null,null,null,null,null,null,null,null,null,null,null,null,null,null,null,null,null,null,null,null,null,null,null,"処理\n区分",null,null,null,null,null,null,null,null,"申告\n区分"]
[null,"　申告者の氏名又は名称"]
[null,{"$f":"IF(提出用!B5=\"\",\"\",提出用!B5)","v":""},null,null,null,null,null,null,null,null,null,null,null,null,null,null,null,null,null,null,null,null,null,null,null,null,null,null,null,null,null,null,null,null,null,null,null,null,null,null,null,null,null,null,null,null,null,null,null,null,null,null,null,null,null,null,null,null,null,null,null,null,null,null,null,null,null,null,null,null,null,null,null,{"$f":"IF(提出用!BV5=\"\",\"\",提出用!BV5)","v":""}]
[]
[null,null,null,null,null,null,null,null,null,null,null,null,null,null,null,null,null,null,null,null,null,null,null,null,null,null,null,null,null,null,null,null,null,null,null,null,null,null,null,null,null,null,null,null,null,null,null,null,null,null,null,null,null,null,null,null,null,null,null,null,null,null,null,null,null,null,null,null,null,null,null,null,null,"予備",null,null,null,null,null,null,null,null,null,null,null,"申 告 年 月 日"]
[null,"　個人番号又は法人番号\n　    　 　　↓個人番号の記載に当たっては、左端を空欄とし、ここから記載してください。"]
[null,null,null,null,null,null,null,null,null,null,null,null,null,null,null,null,null,null,null,null,null,null,null,null,null,null,null,null,null,null,null,null,null,null,null,null,null,null,null,null,null,null,null,null,null,null,null,null,null,null,null,null,null,null,null,null,null,null,null,null,null,null,null,null,null,null,null,null,null,null,null,null,null,1,null,null,null,null,null,3]
[null,{"$f":"IF(提出用!B10=\"\",\"\",提出用!B10)","v":""}]
[]
[null,null,null,null,null,null,null,null,null,null,null,null,null,null,null,null,null,null,null,null,null,null,null,null,null,null,null,null,null,null,null,null,null,null,null,null,null,null,null,null,null,null,null,null,null,null,null,null,null,null,null,null,null,null,null,null,null,null,null,null,null,null,null,null,null,null,null,null,null,null,null,null,null,null,null,null,null,null,null,null,null,null,null,null,null,null,null,null,null,null,null,null,null,null,null,null,null,{"$f":"IF(提出用!CT12=\"\",\"\",提出用!CT12)","v":""},null,null,null,null,null,null,null,null,null,"枚のうち"]
[null,null,null,null,null,null,null,null,null,null,"令和",null,null,{"$f":"IF(提出用!N13=\"\",\"\",提出用!N13)","v":""},null,null,"年",null,null,null,null,null,null,null,null,{"$f":"IF(提出用!Z13=\"\",\"\",提出用!Z13)","v":""},null,null,null,null,null,null,null,null,null,null,null,null,null,null,null,"月申告分"]
[]
[null,null,null,null,null,null,null,null,null,null,null,null,null,null,null,null,null,null,null,null,null,null,null,null,null,null,null,null,null,null,null,null,null,null,null,null,null,null,null,null,null,null,null,null,null,null,null,null,null,null,null,null,null,null,null,null,null,null,null,null,null,null,null,null,null,null,null,null,null,null,null,null,null,null,null,null,null,null,null,null,null,null,null,null,null,null,null,null,null,null,null,null,null,null,null,null,null,{"$f":"IF(提出用!CT15=\"\",\"\",提出用!CT15)","v":""},null,null,null,null,null,null,null,null,null,"枚目"]
[]
[]
[null,"品　　　　目",null,null,null,null,null,null,null,null,null,null,"品目コード",null,null,null,"数　　　　量",null,null,null,null,null,null,null,null,null,null,null,null,null,null,null,null,null,null,null,null,null,null,null,null,null,null,null,null,null,null,null,null,null,null,null,null,null,null,null,null,null,null,null,null,null,null,null,null,"返還の理由及びその他\n参考となるべき事項"]
[]
[]
[null,{"$f":"IF(提出用!B21=\"\",\"\",提出用!B21)","v":""},null,null,null,null,null,null,null,null,null,null,null,null,null,null,{"$f":"IF(提出用!Q21=\"\",\"\",提出用!Q21)","v":""},null,null,null,null,null,null,null,null,null,null,null,null,null,null,null,null,null,null,null,null,null,null,null,null,null,null,null,null,null,null,null,null,null,null,null,null,null,null,null,null,null,null,null,null,null,null,null,null,{"$f":"IF(提出用!BN21=\"\",\"\",提出用!BN21)","v":""}]
[]
[null,{"$f":"IF(提出用!B23=\"\",\"\",提出用!B23)","v":""},null,null,null,null,null,null,null,null,null,null,null,null,null,null,{"$f":"IF(提出用!Q23=\"\",\"\",提出用!Q23)","v":""}]
[]
[null,{"$f":"IF(提出用!B25=\"\",\"\",提出用!B25)","v":""},null,null,null,null,null,null,null,null,null,null,null,null,null,null,{"$f":"IF(提出用!Q25=\"\",\"\",提出用!Q25)","v":""}]
[]
[null,{"$f":"IF(提出用!B27=\"\",\"\",提出用!B27)","v":""},null,null,null,null,null,null,null,null,null,null,null,null,null,null,{"$f":"IF(提出用!Q27=\"\",\"\",提出用!Q27)","v":""}]
[]
[null,{"$f":"IF(提出用!B29=\"\",\"\",提出用!B29)","v":""},null,null,null,null,null,null,null,null,null,null,null,null,null,null,{"$f":"IF(提出用!Q29=\"\",\"\",提出用!Q29)","v":""}]
[]
[null,{"$f":"IF(提出用!B31=\"\",\"\",提出用!B31)","v":""},null,null,null,null,null,null,null,null,null,null,null,null,null,null,{"$f":"IF(提出用!Q31=\"\",\"\",提出用!Q31)","v":""}]
[]
[null,{"$f":"IF(提出用!B33=\"\",\"\",提出用!B33)","v":""},null,null,null,null,null,null,null,null,null,null,null,null,null,null,{"$f":"IF(提出用!Q33=\"\",\"\",提出用!Q33)","v":""}]
[]
[null,{"$f":"IF(提出用!B35=\"\",\"\",提出用!B35)","v":""},null,null,null,null,null,null,null,null,null,null,null,null,null,null,{"$f":"IF(提出用!Q35=\"\",\"\",提出用!Q35)","v":""}]
[]
[null,{"$f":"IF(提出用!B37=\"\",\"\",提出用!B37)","v":""},null,null,null,null,null,null,null,null,null,null,null,null,null,null,{"$f":"IF(提出用!Q37=\"\",\"\",提出用!Q37)","v":""}]
[]
[null,{"$f":"IF(提出用!B39=\"\",\"\",提出用!B39)","v":""},null,null,null,null,null,null,null,null,null,null,null,null,null,null,{"$f":"IF(提出用!Q39=\"\",\"\",提出用!Q39)","v":""}]
[]
[null,{"$f":"IF(提出用!B41=\"\",\"\",提出用!B41)","v":""},null,null,null,null,null,null,null,null,null,null,null,null,null,null,{"$f":"IF(提出用!Q41=\"\",\"\",提出用!Q41)","v":""}]
[]
[null,{"$f":"IF(提出用!B43=\"\",\"\",提出用!B43)","v":""},null,null,null,null,null,null,null,null,null,null,null,null,null,null,{"$f":"IF(提出用!Q43=\"\",\"\",提出用!Q43)","v":""}]
[]
[null,{"$f":"IF(提出用!B45=\"\",\"\",提出用!B45)","v":""},null,null,null,null,null,null,null,null,null,null,null,null,null,null,{"$f":"IF(提出用!Q45=\"\",\"\",提出用!Q45)","v":""}]
[]
[null,{"$f":"IF(提出用!B47=\"\",\"\",提出用!B47)","v":""},null,null,null,null,null,null,null,null,null,null,null,null,null,null,{"$f":"IF(提出用!Q47=\"\",\"\",提出用!Q47)","v":""}]
[]
[null,{"$f":"IF(提出用!B49=\"\",\"\",提出用!B49)","v":""},null,null,null,null,null,null,null,null,null,null,null,null,null,null,{"$f":"IF(提出用!Q49=\"\",\"\",提出用!Q49)","v":""}]
[]
[null,{"$f":"IF(提出用!B51=\"\",\"\",提出用!B51)","v":""},null,null,null,null,null,null,null,null,null,null,null,null,null,null,{"$f":"IF(提出用!Q51=\"\",\"\",提出用!Q51)","v":""}]
[]
[null,{"$f":"IF(提出用!B53=\"\",\"\",提出用!B53)","v":""},null,null,null,null,null,null,null,null,null,null,null,null,null,null,{"$f":"IF(提出用!Q53=\"\",\"\",提出用!Q53)","v":""}]
[]
[null,{"$f":"IF(提出用!B55=\"\",\"\",提出用!B55)","v":""},null,null,null,null,null,null,null,null,null,null,null,null,null,null,{"$f":"IF(提出用!Q55=\"\",\"\",提出用!Q55)","v":""}]
[]
[null,{"$f":"IF(提出用!B57=\"\",\"\",提出用!B57)","v":""},null,null,null,null,null,null,null,null,null,null,null,null,null,null,{"$f":"IF(提出用!Q57=\"\",\"\",提出用!Q57)","v":""}]
[]
[null,{"$f":"IF(提出用!B59=\"\",\"\",提出用!B59)","v":""},null,null,null,null,null,null,null,null,null,null,null,null,null,null,{"$f":"IF(提出用!Q59=\"\",\"\",提出用!Q59)","v":""}]
[]
[null,{"$f":"IF(提出用!B61=\"\",\"\",提出用!B61)","v":""},null,null,null,null,null,null,null,null,null,null,null,null,null,null,{"$f":"IF(提出用!Q61=\"\",\"\",提出用!Q61)","v":""}]
[]
[null,{"$f":"IF(提出用!B63=\"\",\"\",提出用!B63)","v":""},null,null,null,null,null,null,null,null,null,null,null,null,null,null,{"$f":"IF(提出用!Q63=\"\",\"\",提出用!Q63)","v":""}]
[]
[null,{"$f":"IF(提出用!B65=\"\",\"\",提出用!B65)","v":""},null,null,null,null,null,null,null,null,null,null,null,null,null,null,{"$f":"IF(提出用!Q65=\"\",\"\",提出用!Q65)","v":""}]
[]
[null,{"$f":"IF(提出用!B67=\"\",\"\",提出用!B67)","v":""},null,null,null,null,null,null,null,null,null,null,null,null,null,null,{"$f":"IF(提出用!Q67=\"\",\"\",提出用!Q67)","v":""}]

{"sheet":"入力用","index":2,"n_rows":67,"n_cols":113,"rows_kept":67,"cut":false,"hidden":false,"merged":[[20,3,21,11],[2,73,3,102],[2,103,3,111],[2,112,3,120],[4,112,4,116],[4,117,4,120],[4,103,4,106],[4,107,4,111],[8,103,9,108],[8,109,9,114],[8,115,9,120],[5,97,5,99],[5,100,5,102],[8,73,9,78],[8,79,9,84],[8,85,9,90],[8,91,9,96],[8,97,9,102],[5,76,5,78],[5,79,5,81],[5,82,5,84],[5,85,5,87],[5,88,5,90],[5,91,5,93],[5,94,5,96],[26,16,26,64],[28,16,28,64],[22,16,22,64],[24,16,24,64],[11,97,12,106],[14,97,15,106],[20,12,20,15],[20,16,20,64],[12,16,15,24],[17,97,17,106],[12,13,15,15],[7,13,11,30],[12,25,15,40],[11,41,15,96],[34,16,34,64],[36,16,36,64],[34,1,35,2],[36,1,37,2],[34,12,34,15],[36,12,36,15],[30,16,30,64],[32,16,32,64],[32,12,32,15],[46,12,46,15],[48,12,48,15],[42,16,42,64],[44,16,44,64],[42,1,43,2],[44,1,45,2],[42,12,42,15],[44,12,44,15],[38,16,38,64],[40,16,40,64],[38,1,39,2],[40,1,41,2],[38,12,38,15],[40,12,40,15],[64,12,64,15],[58,16,58,64],[8,65,10,72],[60,16,60,64],[58,1,59,2],[60,1,61,2],[58,12,58,15],[60,12,60,15],[54,16,54,64],[56,16,56,64],[54,1,55,2],[56,1,57,2],[54,12,54,15],[56,12,56,15],[50,16,50,64],[52,16,52,64],[50,1,51,2],[52,1,53,2],[50,12,50,15],[52,12,52,15],[46,16,46,64],[48,16,48,64],[46,1,47,2],[48,1,49,2],[20,1,21,2],[17,1,18,2],[19,1,19,2],[4,73,4,102],[66,12,66,15],[6,31,6,120],[66,1,67,2],[22,12,22,15],[24,12,24,15],[26,12,26,15],[28,12,28,15],[30,12,30,15],[66,16,66,64],[22,1,23,2],[24,1,25,2],[26,1,27,2],[28,1,29,2],[30,1,31,2],[32,1,33,2],[62,16,62,64],[64,16,64,64],[62,1,63,2],[64,1,65,2],[62,12,62,15]]}
[]
[]
[null,null,null,null,null,null,null,null,null,null,null,null,null,null,null,null,null,null,null,null,null,null,null,null,null,null,null,null,null,null,null,null,null,null,null,null,null,null,null,null,null,null,null,null,null,null,null,null,null,null,null,null,null,null,null,null,null,null,null,null,null,null,null,null,null,null,null,null,null,null,null,null,null,"事業者コード",null,null,null,null,null,null,null,null,null,null,null,null,null,null,null,null,null,null,null,null,null,null,null,null,null,null,null,null,null,"処理\n区分",null,null,null,null,null,null,null,null,"申告\n区分"]
[]
[null,null,null,null,null,null,null,null,null,null,null,null,null,null,null,null,null,null,null,null,null,null,null,null,null,null,null,null,null,null,null,null,null,null,null,null,null,null,null,null,null,null,null,null,null,null,null,null,null,null,null,null,null,null,null,null,null,null,null,null,null,null,null,null,null,null,null,null,null,null,null,null,null,{"$f":"IF(提出用!BV5=\"\",\"\",提出用!BV5)","v":""}]
[]
[]
[]
[null,null,null,null,null,null,null,null,null,null,null,null,null,null,null,null,null,null,null,null,null,null,null,null,null,null,null,null,null,null,null,null,null,null,null,null,null,null,null,null,null,null,null,null,null,null,null,null,null,null,null,null,null,null,null,null,null,null,null,null,null,null,null,null,null,"サ",null,null,null,null,null,null,null,1,null,null,null,null,null,3]
[]
[]
[null,null,null,null,null,null,null,null,null,null,null,null,null,null,null,null,null,null,null,null,null,null,null,null,null,null,null,null,null,null,null,null,null,null,null,null,null,null,null,null,null,null,null,null,null,null,null,null,null,null,null,null,null,null,null,null,null,null,null,null,null,null,null,null,null,null,null,null,null,null,null,null,null,null,null,null,null,null,null,null,null,null,null,null,null,null,null,null,null,null,null,null,null,null,null,null,null,{"$f":"IF(提出用!CT12=\"\",\"\",提出用!CT12)","v":""}]
[null,null,null,null,null,null,null,null,null,null,null,null,null,{"$f":"IF(提出用!N13=\"\",\"\",提出用!N13)","v":""},null,null,null,null,null,null,null,null,null,null,null,{"$f":"IF(提出用!Z13=\"\",\"\",提出用!Z13)","v":""}]
[]
[null,null,null,null,null,null,null,null,null,null,null,null,null,null,null,null,null,null,null,null,null,null,null,null,null,null,null,null,null,null,null,null,null,null,null,null,null,null,null,null,null,null,null,null,null,null,null,null,null,null,null,null,null,null,null,null,null,null,null,null,null,null,null,null,null,null,null,null,null,null,null,null,null,null,null,null,null,null,null,null,null,null,null,null,null,null,null,null,null,null,null,null,null,null,null,null,null,{"$f":"IF(提出用!CT15=\"\",\"\",提出用!CT15)","v":""}]
[]
[]
[null,"シ"]
[]
[]
[null,"01",null,null,null,null,null,null,null,null,null,null,{"$f":"IF(提出用写!M21=\"\",\"\",提出用写!M21)","v":""},null,null,null,{"$f":"IF(提出用!Q21=\"\",\"\",提出用!Q21)","v":""}]
[]
[null,"02",null,null,null,null,null,null,null,null,null,null,{"$f":"IF(提出用写!M23=\"\",\"\",提出用写!M23)","v":""},null,null,null,{"$f":"IF(提出用!Q23=\"\",\"\",提出用!Q23)","v":""}]
[]
[null,"03",null,null,null,null,null,null,null,null,null,null,{"$f":"IF(提出用写!M25=\"\",\"\",提出用写!M25)","v":""},null,null,null,{"$f":"IF(提出用!Q25=\"\",\"\",提出用!Q25)","v":""}]
[]
[null,"04",null,null,null,null,null,null,null,null,null,null,{"$f":"IF(提出用写!M27=\"\",\"\",提出用写!M27)","v":""},null,null,null,{"$f":"IF(提出用!Q27=\"\",\"\",提出用!Q27)","v":""}]
[]
[null,"05",null,null,null,null,null,null,null,null,null,null,{"$f":"IF(提出用写!M29=\"\",\"\",提出用写!M29)","v":""},null,null,null,{"$f":"IF(提出用!Q29=\"\",\"\",提出用!Q29)","v":""}]
[]
[null,"06",null,null,null,null,null,null,null,null,null,null,{"$f":"IF(提出用写!M31=\"\",\"\",提出用写!M31)","v":""},null,null,null,{"$f":"IF(提出用!Q31=\"\",\"\",提出用!Q31)","v":""}]
[]
[null,"07",null,null,null,null,null,null,null,null,null,null,{"$f":"IF(提出用写!M33=\"\",\"\",提出用写!M33)","v":""},null,null,null,{"$f":"IF(提出用!Q33=\"\",\"\",提出用!Q33)","v":""}]
[]
[null,"08",null,null,null,null,null,null,null,null,null,null,{"$f":"IF(提出用写!M35=\"\",\"\",提出用写!M35)","v":""},null,null,null,{"$f":"IF(提出用!Q35=\"\",\"\",提出用!Q35)","v":""}]
[]
[null,"09",null,null,null,null,null,null,null,null,null,null,{"$f":"IF(提出用写!M37=\"\",\"\",提出用写!M37)","v":""},null,null,null,{"$f":"IF(提出用!Q37=\"\",\"\",提出用!Q37)","v":""}]
[]
[null,"10",null,null,null,null,null,null,null,null,null,null,{"$f":"IF(提出用写!M39=\"\",\"\",提出用写!M39)","v":""},null,null,null,{"$f":"IF(提出用!Q39=\"\",\"\",提出用!Q39)","v":""}]
[]
[null,"11",null,null,null,null,null,null,null,null,null,null,{"$f":"IF(提出用写!M41=\"\",\"\",提出用写!M41)","v":""},null,null,null,{"$f":"IF(提出用!Q41=\"\",\"\",提出用!Q41)","v":""}]
[]
[null,"12",null,null,null,null,null,null,null,null,null,null,{"$f":"IF(提出用写!M43=\"\",\"\",提出用写!M43)","v":""},null,null,null,{"$f":"IF(提出用!Q43=\"\",\"\",提出用!Q43)","v":""}]
[]
[null,"13",null,null,null,null,null,null,null,null,null,null,{"$f":"IF(提出用写!M45=\"\",\"\",提出用写!M45)","v":""},null,null,null,{"$f":"IF(提出用!Q45=\"\",\"\",提出用!Q45)","v":""}]
[]
[null,"14",null,null,null,null,null,null,null,null,null,null,{"$f":"IF(提出用写!M47=\"\",\"\",提出用写!M47)","v":""},null,null,null,{"$f":"IF(提出用!Q47=\"\",\"\",提出用!Q47)","v":""}]
[]
[null,"15",null,null,null,null,null,null,null,null,null,null,{"$f":"IF(提出用写!M49=\"\",\"\",提出用写!M49)","v":""},null,null,null,{"$f":"IF(提出用!Q49=\"\",\"\",提出用!Q49)","v":""}]
[]
[null,"16",null,null,null,null,null,null,null,null,null,null,{"$f":"IF(提出用写!M51=\"\",\"\",提出用写!M51)","v":""},null,null,null,{"$f":"IF(提出用!Q51=\"\",\"\",提出用!Q51)","v":""}]
[]
[null,"17",null,null,null,null,null,null,null,null,null,null,{"$f":"IF(提出用写!M53=\"\",\"\",提出用写!M53)","v":""},null,null,null,{"$f":"IF(提出用!Q53=\"\",\"\",提出用!Q53)","v":""}]
[]
[null,"18",null,null,null,null,null,null,null,null,null,null,{"$f":"IF(提出用写!M55=\"\",\"\",提出用写!M55)","v":""},null,null,null,{"$f":"IF(提出用!Q55=\"\",\"\",提出用!Q55)","v":""}]
[]
[null,"19",null,null,null,null,null,null,null,null,null,null,{"$f":"IF(提出用写!M57=\"\",\"\",提出用写!M57)","v":""},null,null,null,{"$f":"IF(提出用!Q57=\"\",\"\",提出用!Q57)","v":""}]
[]
[null,"20",null,null,null,null,null,null,null,null,null,null,{"$f":"IF(提出用写!M59=\"\",\"\",提出用写!M59)","v":""},null,null,null,{"$f":"IF(提出用!Q59=\"\",\"\",提出用!Q59)","v":""}]
[]
[null,"21",null,null,null,null,null,null,null,null,null,null,{"$f":"IF(提出用写!M61=\"\",\"\",提出用写!M61)","v":""},null,null,null,{"$f":"IF(提出用!Q61=\"\",\"\",提出用!Q61)","v":""}]
[]
[null,"22",null,null,null,null,null,null,null,null,null,null,{"$f":"IF(提出用写!M63=\"\",\"\",提出用写!M63)","v":""},null,null,null,{"$f":"IF(提出用!Q63=\"\",\"\",提出用!Q63)","v":""}]
[]
[null,"23",null,null,null,null,null,null,null,null,null,null,{"$f":"IF(提出用写!M65=\"\",\"\",提出用写!M65)","v":""},null,null,null,{"$f":"IF(提出用!Q65=\"\",\"\",提出用!Q65)","v":""}]
[]
[null,"24",null,null,null,null,null,null,null,null,null,null,{"$f":"IF(提出用写!M67=\"\",\"\",提出用写!M67)","v":""},null,null,null,{"$f":"IF(提出用!Q67=\"\",\"\",提出用!Q67)","v":""}]

{"sheet":"提出用控","index":3,"n_rows":67,"n_cols":113,"rows_kept":67,"cut":false,"hidden":false,"merged":[[22,1,23,11],[4,103,4,107],[4,108,4,111],[8,97,9,102],[5,94,5,96],[8,103,9,108],[8,109,9,114],[19,1,19,10],[19,12,19,15],[17,12,18,64],[20,12,21,15],[4,1,6,64],[11,107,13,120],[34,12,35,15],[36,12,37,15],[36,16,36,64],[20,16,20,64],[30,16,30,64],[28,16,28,64],[26,16,26,64],[24,16,24,64],[22,16,22,64],[32,16,32,64],[34,16,34,64],[28,12,29,15],[30,12,31,15],[32,12,33,15],[58,12,59,15],[60,12,61,15],[54,12,55,15],[56,12,57,15],[38,12,39,15],[40,16,40,64],[56,16,56,64],[54,16,54,64],[52,16,52,64],[50,16,50,64],[40,12,41,15],[46,12,47,15],[48,12,49,15],[46,16,46,64],[48,16,48,64],[42,12,43,15],[44,12,45,15],[44,16,44,64],[42,16,42,64],[50,12,51,15],[52,12,53,15],[66,16,66,64],[64,16,64,64],[62,16,62,64],[38,16,38,64],[8,73,9,78],[8,79,9,84],[8,85,9,90],[8,91,9,96],[20,65,67,120],[19,65,19,120],[14,97,15,106],[14,107,16,120],[17,65,18,120],[12,16,15,24],[7,1,8,64],[66,12,67,15],[60,16,60,64],[58,16,58,64],[2,65,10,72],[22,12,23,15],[24,12,25,15],[26,12,27,15],[62,12,63,15],[64,12,65,15],[3,1,3,10],[9,1,9,64],[12,13,15,15],[12,10,15,12],[12,25,15,40],[12,41,15,60],[4,117,4,120],[2,73,3,102],[2,103,3,111],[2,112,3,120],[4,112,4,116],[5,97,5,99],[5,100,5,102],[6,73,7,84],[6,85,7,120],[5,76,5,78],[5,79,5,81],[5,82,5,84],[5,85,5,87],[5,88,5,90],[4,73,4,102],[5,91,5,93],[8,115,9,120],[11,97,12,106],[66,1,67,11],[17,1,18,11],[48,1,49,11],[50,1,51,11],[52,1,53,11],[54,1,55,11],[56,1,57,11],[58,1,59,11],[60,1,61,11],[62,1,63,11],[64,1,65,11],[30,1,31,11],[32,1,33,11],[34,1,35,11],[36,1,37,11],[38,1,39,11],[40,1,41,11],[42,1,43,11],[44,1,45,11],[46,1,47,11],[20,1,21,11],[24,1,25,11],[26,1,27,11],[28,1,29,11]]}
[]
[]
[null,null,null,null,null,null,null,null,null,null,null,null,null,null,null,null,null,null,null,null,null,null,null,null,null,null,null,null,null,null,null,null,null,null,null,null,null,null,null,null,null,null,null,null,null,null,null,null,null,null,null,null,null,null,null,null,null,null,null,null,null,null,null,null,null,"※処理事項",null,null,null,null,null,null,null,"事業者コード",null,null,null,null,null,null,null,null,null,null,null,null,null,null,null,null,null,null,null,null,null,null,null,null,null,null,null,null,null,"処理\n区分",null,null,null,null,null,null,null,null,"申告\n区分"]
[null,"　申告者の氏名又は名称"]
[null,{"$f":"IF(提出用!B5=\"\",\"\",提出用!B5)","v":""},null,null,null,null,null,null,null,null,null,null,null,null,null,null,null,null,null,null,null,null,null,null,null,null,null,null,null,null,null,null,null,null,null,null,null,null,null,null,null,null,null,null,null,null,null,null,null,null,null,null,null,null,null,null,null,null,null,null,null,null,null,null,null,null,null,null,null,null,null,null,null,{"$f":"IF(提出用!BV5=\"\",\"\",提出用!BV5)","v":""}]
[]
[null,null,null,null,null,null,null,null,null,null,null,null,null,null,null,null,null,null,null,null,null,null,null,null,null,null,null,null,null,null,null,null,null,null,null,null,null,null,null,null,null,null,null,null,null,null,null,null,null,null,null,null,null,null,null,null,null,null,null,null,null,null,null,null,null,null,null,null,null,null,null,null,null,"予備",null,null,null,null,null,null,null,null,null,null,null,"申 告 年 月 日"]
[null,"　個人番号又は法人番号\n　    　 　　↓個人番号の記載に当たっては、左端を空欄とし、ここから記載してください。"]
[null,null,null,null,null,null,null,null,null,null,null,null,null,null,null,null,null,null,null,null,null,null,null,null,null,null,null,null,null,null,null,null,null,null,null,null,null,null,null,null,null,null,null,null,null,null,null,null,null,null,null,null,null,null,null,null,null,null,null,null,null,null,null,null,null,null,null,null,null,null,null,null,null,1,null,null,null,null,null,3]
[null,{"$f":"IF(提出用!B10=\"\",\"\",提出用!B10)","v":""}]
[]
[null,null,null,null,null,null,null,null,null,null,null,null,null,null,null,null,null,null,null,null,null,null,null,null,null,null,null,null,null,null,null,null,null,null,null,null,null,null,null,null,null,null,null,null,null,null,null,null,null,null,null,null,null,null,null,null,null,null,null,null,null,null,null,null,null,null,null,null,null,null,null,null,null,null,null,null,null,null,null,null,null,null,null,null,null,null,null,null,null,null,null,null,null,null,null,null,null,{"$f":"IF(提出用!CT12=\"\",\"\",提出用!CT12)","v":""},null,null,null,null,null,null,null,null,null,"枚のうち"]
[null,null,null,null,null,null,null,null,null,null,"令和",null,null,{"$f":"IF(提出用!N13=\"\",\"\",提出用!N13)","v":""},null,null,"年",null,null,null,null,null,null,null,null,{"$f":"IF(提出用!Z13=\"\",\"\",提出用!Z13)","v":""},null,null,null,null,null,null,null,null,null,null,null,null,null,null,null,"月申告分"]
[]
[null,null,null,null,null,null,null,null,null,null,null,null,null,null,null,null,null,null,null,null,null,null,null,null,null,null,null,null,null,null,null,null,null,null,null,null,null,null,null,null,null,null,null,null,null,null,null,null,null,null,null,null,null,null,null,null,null,null,null,null,null,null,null,null,null,null,null,null,null,null,null,null,null,null,null,null,null,null,null,null,null,null,null,null,null,null,null,null,null,null,null,null,null,null,null,null,null,{"$f":"IF(提出用!CT15=\"\",\"\",提出用!CT15)","v":""},null,null,null,null,null,null,null,null,null,"枚目"]
[]
[]
[null,"品　　　　目",null,null,null,null,null,null,null,null,null,null,"数　　　　量",null,null,null,null,null,null,null,null,null,null,null,null,null,null,null,null,null,null,null,null,null,null,null,null,null,null,null,null,null,null,null,null,null,null,null,null,null,null,null,null,null,null,null,null,null,null,null,null,null,null,null,null,"返還の理由及びその他\n参考となるべき事項"]
[]
[]
[null,{"$f":"IF(提出用!B21=\"\",\"\",提出用!B21)","v":""},null,null,null,null,null,null,null,null,null,null,null,null,null,null,{"$f":"IF(提出用!Q21=\"\",\"\",提出用!Q21)","v":""},null,null,null,null,null,null,null,null,null,null,null,null,null,null,null,null,null,null,null,null,null,null,null,null,null,null,null,null,null,null,null,null,null,null,null,null,null,null,null,null,null,null,null,null,null,null,null,null,{"$f":"IF(提出用!BN21=\"\",\"\",提出用!BN21)","v":""}]
[]
[null,{"$f":"IF(提出用!B23=\"\",\"\",提出用!B23)","v":""},null,null,null,null,null,null,null,null,null,null,null,null,null,null,{"$f":"IF(提出用!Q23=\"\",\"\",提出用!Q23)","v":""}]
[]
[null,{"$f":"IF(提出用!B25=\"\",\"\",提出用!B25)","v":""},null,null,null,null,null,null,null,null,null,null,null,null,null,null,{"$f":"IF(提出用!Q25=\"\",\"\",提出用!Q25)","v":""}]
[]
[null,{"$f":"IF(提出用!B27=\"\",\"\",提出用!B27)","v":""},null,null,null,null,null,null,null,null,null,null,null,null,null,null,{"$f":"IF(提出用!Q27=\"\",\"\",提出用!Q27)","v":""}]
[]
[null,{"$f":"IF(提出用!B29=\"\",\"\",提出用!B29)","v":""},null,null,null,null,null,null,null,null,null,null,null,null,null,null,{"$f":"IF(提出用!Q29=\"\",\"\",提出用!Q29)","v":""}]
[]
[null,{"$f":"IF(提出用!B31=\"\",\"\",提出用!B31)","v":""},null,null,null,null,null,null,null,null,null,null,null,null,null,null,{"$f":"IF(提出用!Q31=\"\",\"\",提出用!Q31)","v":""}]
[]
[null,{"$f":"IF(提出用!B33=\"\",\"\",提出用!B33)","v":""},null,null,null,null,null,null,null,null,null,null,null,null,null,null,{"$f":"IF(提出用!Q33=\"\",\"\",提出用!Q33)","v":""}]
[]
[null,{"$f":"IF(提出用!B35=\"\",\"\",提出用!B35)","v":""},null,null,null,null,null,null,null,null,null,null,null,null,null,null,{"$f":"IF(提出用!Q35=\"\",\"\",提出用!Q35)","v":""}]
[]
[null,{"$f":"IF(提出用!B37=\"\",\"\",提出用!B37)","v":""},null,null,null,null,null,null,null,null,null,null,null,null,null,null,{"$f":"IF(提出用!Q37=\"\",\"\",提出用!Q37)","v":""}]
[]
[null,{"$f":"IF(提出用!B39=\"\",\"\",提出用!B39)","v":""},null,null,null,null,null,null,null,null,null,null,null,null,null,null,{"$f":"IF(提出用!Q39=\"\",\"\",提出用!Q39)","v":""}]
[]
[null,{"$f":"IF(提出用!B41=\"\",\"\",提出用!B41)","v":""},null,null,null,null,null,null,null,null,null,null,null,null,null,null,{"$f":"IF(提出用!Q41=\"\",\"\",提出用!Q41)","v":""}]
[]
[null,{"$f":"IF(提出用!B43=\"\",\"\",提出用!B43)","v":""},null,null,null,null,null,null,null,null,null,null,null,null,null,null,{"$f":"IF(提出用!Q43=\"\",\"\",提出用!Q43)","v":""}]
[]
[null,{"$f":"IF(提出用!B45=\"\",\"\",提出用!B45)","v":""},null,null,null,null,null,null,null,null,null,null,null,null,null,null,{"$f":"IF(提出用!Q45=\"\",\"\",提出用!Q45)","v":""}]
[]
[null,{"$f":"IF(提出用!B47=\"\",\"\",提出用!B47)","v":""},null,null,null,null,null,null,null,null,null,null,null,null,null,null,{"$f":"IF(提出用!Q47=\"\",\"\",提出用!Q47)","v":""}]
[]
[null,{"$f":"IF(提出用!B49=\"\",\"\",提出用!B49)","v":""},null,null,null,null,null,null,null,null,null,null,null,null,null,null,{"$f":"IF(提出用!Q49=\"\",\"\",提出用!Q49)","v":""}]
[]
[null,{"$f":"IF(提出用!B51=\"\",\"\",提出用!B51)","v":""},null,null,null,null,null,null,null,null,null,null,null,null,null,null,{"$f":"IF(提出用!Q51=\"\",\"\",提出用!Q51)","v":""}]
[]
[null,{"$f":"IF(提出用!B53=\"\",\"\",提出用!B53)","v":""},null,null,null,null,null,null,null,null,null,null,null,null,null,null,{"$f":"IF(提出用!Q53=\"\",\"\",提出用!Q53)","v":""}]
[]
[null,{"$f":"IF(提出用!B55=\"\",\"\",提出用!B55)","v":""},null,null,null,null,null,null,null,null,null,null,null,null,null,null,{"$f":"IF(提出用!Q55=\"\",\"\",提出用!Q55)","v":""}]
[]
[null,{"$f":"IF(提出用!B57=\"\",\"\",提出用!B57)","v":""},null,null,null,null,null,null,null,null,null,null,null,null,null,null,{"$f":"IF(提出用!Q57=\"\",\"\",提出用!Q57)","v":""}]
[]
[null,{"$f":"IF(提出用!B59=\"\",\"\",提出用!B59)","v":""},null,null,null,null,null,null,null,null,null,null,null,null,null,null,{"$f":"IF(提出用!Q59=\"\",\"\",提出用!Q59)","v":""}]
[]
[null,{"$f":"IF(提出用!B61=\"\",\"\",提出用!B61)","v":""},null,null,null,null,null,null,null,null,null,null,null,null,null,null,{"$f":"IF(提出用!Q61=\"\",\"\",提出用!Q61)","v":""}]
[]
[null,{"$f":"IF(提出用!B63=\"\",\"\",提出用!B63)","v":""},null,null,null,null,null,null,null,null,null,null,null,null,null,null,{"$f":"IF(提出用!Q63=\"\",\"\",提出用!Q63)","v":""}]
[]
[null,{"$f":"IF(提出用!B65=\"\",\"\",提出用!B65)","v":""},null,null,null,null,null,null,null,null,null,null,null,null,null,null,{"$f":"IF(提出用!Q65=\"\",\"\",提出用!Q65)","v":""}]
[]
[null,{"$f":"IF(提出用!B67=\"\",\"\",提出用!B67)","v":""},null,null,null,null,null,null,null,null,null,null,null,null,null,null,{"$f":"IF(提出用!Q67=\"\",\"\",提出用!Q67)","v":""}]